bitfinex/quotes_ETHUSD_20240731
["timestamp","ask_amount","ask_price","bid_price","bid_amount"]
[1722434959468,2.19669019,3345.5,3345.4,2.98917]
[1722434959863,2.19669019,3345.6,3345.3,0.653308]
[1722434960011,2.19669019,3345.5,3345.3,3.642558]
[1722434960210,2.19669019,3345.6,3345.4,2.98914]
[1722434960437,2.19669019,3345.6,3345.2,0.2]
[1722434960753,1.88168167,3345.3,3345.2,4.141578]
[1722434960956,3.11708271,3346.2,3345.2,4.141578]
[1722434960957,2.19669019,3345.5,3345.2,4.141578]
[1722434961510,2.19526524,3345.5,3345.2,1.152278]
[1722434961757,2.19526524,3345.5,3345.2,0.2]
[1722434962115,2.98922,3345.4,3345.2,0.2]
[1722434962341,2.98922,3345.4,3345.2,0.4]
[1722434962515,5.58237707,3345.4,3345.2,0.4]
[1722434962725,2.59315707,3345.4,3345.2,0.4]
[1722434963045,0.79254471,3345.3,3345.2,0.4]
[1722434963816,3.78180471,3345.3,3345.2,0.4]
[1722434964038,6.77106471,3345.3,3345.2,0.4]
[1722434964365,9.88814742,3345.3,3345.2,0.4]
[1722434965077,6.77106471,3345.3,3345.2,0.4]
[1722434965574,9.08666471,3345.3,3345.2,0.4]
[1722434965768,12.21717838,3345.3,3345.2,0.4]
[1722434966275,9.09740471,3345.3,3345.2,0.4]
[1722434966565,5.3156,3345.3,3345.2,0.4]
[1722434966767,3.0,3345.3,3345.2,0.4]
[1722434967547,3.0,3345.4,3345.2,0.4]
[1722434968070,3.0,3345.5,3345.2,0.4]
[1722434968835,2.59366458,3345.3,3345.2,0.4]
[1722434969146,2.59366458,3345.3,3345.2,0.49724481]
[1722434969544,2.19557212,3345.3,3345.2,3.48659481]
[1722434969746,2.19557212,3345.6,3345.2,3.82800948]
[1722434969972,1.88168823,3345.3,3345.2,3.92525429]
[1722434970271,2.19557212,3345.5,3345.2,3.92525429]
[1722434970575,1.88157147,3345.3,3345.2,3.92525429]
[1722434970778,7.41,3345.9,3345.2,0.93590429]
[1722434970947,2.19530258,3345.4,3345.2,0.49724481]
[1722434971452,2.19530258,3345.4,3345.2,0.4]
[1722434971661,2.19530258,3345.4,3345.3,0.09724376]
[1722434971844,2.19530258,3345.5,3345.2,0.4]
[1722434972046,2.19530258,3345.4,3345.2,0.4]
[1722434972421,2.59320117,3345.7,3345.3,0.09726665]
[1722434972422,2.98911,3345.5,3345.3,0.09726665]
[1722434972617,0.85712412,3345.4,3345.3,0.09726665]
[1722434972791,0.85712412,3345.4,3345.2,0.4]
[1722434973324,2.98926,3345.3,3345.2,0.4]
[1722434973476,8.35636,3345.3,3345.2,0.4]
[1722434974078,11.46872472,3345.3,3345.2,0.4]
[1722434974275,9.88785388,3345.3,3345.2,0.4]
[1722434975289,12.87711388,3345.3,3345.2,0.4]
[1722434975731,15.9894786,3345.3,3345.2,0.4]
[1722434975913,13.0002186,3345.3,3345.2,0.4]
[1722434976095,9.88785388,3345.3,3345.2,0.4]
[1722434976300,3.11236472,3345.5,3345.2,0.4]
[1722434976493,2.59344047,3345.5,3345.2,0.4]
[1722434976734,2.59344047,3345.4,3345.3,0.0975447]
[1722434976883,2.59344047,3345.5,3345.3,0.0975447]
[1722434977221,2.59348987,3345.5,3345.2,0.4]
[1722434977582,2.59348987,3345.5,3345.3,0.09746945]
[1722434977785,7.41,3345.9,3345.2,3.38929]
[1722434977786,2.19509912,3345.6,3345.2,3.38929]
[1722434977984,2.19509912,3345.6,3345.4,0.0974684]
[1722434978287,2.19509912,3345.6,3345.3,3.717088]
[1722434978503,2.19509912,3345.6,3345.4,0.09739316]
[1722434978782,2.19509912,3345.7,3345.4,0.09739316]
[1722434979331,2.19509912,3345.6,3345.3,0.727878]
[1722434979503,2.19509912,3345.7,3345.4,0.4117168]
[1722434979834,2.19509912,3345.7,3345.4,2.98916]
[1722434980039,2.19509912,3345.8,3345.5,2.98904]
[1722434980188,7.41,3345.9,3345.5,3.08628128]
[1722434980395,2.19461855,3345.8,3345.6,0.60755113]
[1722434980650,9.60461855,3345.9,3345.6,0.60755113]
[1722434980793,9.60461855,3345.9,3345.7,0.09725918]
[1722434980794,2.19461855,3345.8,3345.7,0.09725918]
[1722434982201,2.19461855,3345.8,3345.6,0.60755113]
[1722434982513,2.19461855,3345.8,3345.7,0.09722321]
[1722434982699,2.19461855,3345.8,3345.5,2.98907]
[1722434982899,1.88044714,3345.6,3345.5,2.98907]
[1722434983240,2.59239316,3346.3,3345.5,2.98907]
[1722434983241,1.88041327,3345.7,3345.5,2.98907]
[1722434983445,2.9884,3346.3,3345.2,3.38931]
[1722434983615,1.88040375,3345.5,3345.2,3.38931]
[1722434983819,1.88040375,3345.5,3345.4,2.98915]
[1722434984447,1.88040375,3345.5,3345.2,3.38928]
[1722434984650,1.88040375,3345.5,3345.3,2.98925]
[1722434984803,1.88040375,3345.5,3345.2,3.38928]
[1722434985001,1.88040375,3345.5,3345.2,4.380357]
[1722434985304,1.88040375,3345.4,3345.2,0.4]
[1722434985508,1.88040375,3345.5,3345.2,3.38934]
[1722434985745,1.56682838,3345.3,3345.2,3.38934]
[1722434986043,1.88040375,3345.5,3345.4,2.98912]
[1722434986603,2.98838,3346.3,3345.4,2.98912]
[1722434986844,1.88017171,3345.5,3345.4,2.98912]
[1722434987575,1.88017171,3345.7,3345.4,2.98912]
[1722434987778,2.59111164,3346.3,3345.5,2.98908]
[1722434987779,1.88017171,3345.6,3345.5,2.98908]
[1722434988280,1.88017171,3345.6,3345.4,2.98913]
[1722434988481,2.59111164,3346.3,3345.5,3.327953]
[1722434988482,1.88017171,3345.7,3345.5,3.327953]
[1722434988791,2.3375,3346.4,3345.5,3.327953]
[1722434988792,1.88017171,3345.6,3345.5,3.327953]
[1722434989234,1.88017171,3345.7,3345.6,2.989]
[1722434989435,1.88017171,3346.0,3345.9,5.97746]
[1722434989682,1.88017171,3346.0,3345.9,6.58118369]
[1722434989884,1.87953292,3346.2,3346.1,2.98848]
[1722434990790,1.87953292,3346.3,3346.2,2.98846]
[1722434990942,2.19278841,3346.6,3346.2,2.98846]
[1722434991333,0.099241,3346.7,3346.2,2.98846]
[1722434991334,2.19278841,3346.5,3346.2,2.98846]
[1722434991563,2.19278841,3346.6,3346.0,2.98855]
[1722434991770,1.87879811,3346.3,3346.0,6.63522437]
[1722434991968,1.87879811,3346.3,3346.2,2.98846]
[1722434992573,1.87879811,3346.4,3346.2,2.98846]
[1722434992779,1.87879811,3346.6,3346.3,5.68013915]
[1722434993098,0.099241,3346.7,3346.3,5.68013915]
[1722434993099,0.099241,3346.7,3346.6,5.9762]
[1722434993681,0.099241,3346.7,3346.6,7.0199186]
[1722434993682,1.66426812,3346.7,3346.6,7.0199186]
[1722434993726,0.099241,3346.7,3346.6,7.0199186]
[1722434995675,0.099241,3346.7,3346.6,10.0080186]
[1722434997104,0.099241,3346.7,3346.6,7.0199186]
[1722434998015,0.099241,3346.7,3346.6,7.1161417]
[1722434998538,0.099241,3346.7,3346.6,4.1280417]
[1722434999033,0.099241,3346.7,3346.6,3.0843231]
[1722435000540,0.099241,3346.7,3346.6,6.13217895]
[1722435000685,0.099241,3346.7,3346.6,6.0724231]
[1722435001029,0.099241,3346.7,3346.6,0.0962231]
[1722435001392,0.099241,3346.7,3346.6,2.9881]
[1722435001588,0.099241,3346.7,3346.6,3.3831331]
[1722435001819,0.099241,3346.7,3346.6,6.3712331]
[1722435002735,0.099241,3346.7,3346.6,3.3831331]
[1722435003143,0.099241,3346.7,3346.6,0.3950331]
[1722435003343,0.099241,3346.7,3346.6,0.0962231]
[1722435004052,0.099241,3346.7,3346.6,3.0843231]
[1722435004365,0.099241,3346.7,3346.6,6.0724231]
[1722435004662,0.099241,3346.7,3346.6,6.13217629]
[1722435004965,0.099241,3346.7,3346.6,7.24767573]
[1722435005158,0.099241,3346.7,3346.6,4.25957573]
[1722435005356,0.099241,3346.7,3346.6,4.45957573]
[1722435006225,0.099241,3346.7,3346.6,7.44767573]
[1722435007134,0.099241,3346.7,3346.6,12.80947573]
[1722435008066,0.099241,3346.7,3346.6,9.82137573]
[1722435008225,0.099241,3346.7,3346.6,7.44767573]
[1722435009423,0.099241,3346.7,3346.6,4.65957573]
[1722435009843,0.099241,3346.7,3346.6,7.64767573]
[1722435010155,0.099241,3346.7,3346.6,4.65957573]
[1722435010360,0.099241,3346.7,3346.6,1.67147573]
[1722435010585,0.099241,3346.7,3346.6,4.65957573]
[1722435011008,0.099241,3346.7,3346.6,1.67147573]
[1722435011526,0.099241,3346.7,3346.6,0.4962231]
[1722435011837,0.099241,3346.7,3346.6,0.4]
[1722435012310,0.099241,3346.7,3346.6,0.49260586]
[1722435013472,3.087251,3346.7,3346.6,0.49260586]
[1722435013696,4.64713656,3346.7,3346.6,0.4]
[1722435014084,3.087251,3346.7,3346.6,0.4]
[1722435014559,4.95911368,3346.7,3346.6,0.4]
[1722435014760,4.96058404,3346.7,3346.6,0.4]
[1722435015010,3.087251,3346.7,3346.6,0.4]
[1722435015215,9.64110438,3346.7,3346.6,0.4]
[1722435015508,8.384761,3346.7,3346.6,0.4]
[1722435016371,4.28241431,3346.7,3346.6,0.4]
[1722435016596,2.408741,3346.7,3346.6,0.4]
[1722435016903,4.28241636,3346.7,3346.6,0.4]
[1722435017205,8.51479712,3346.7,3346.6,0.4]
[1722435017376,6.64112176,3346.7,3346.6,0.4]
[1722435017559,9.62913176,3346.7,3346.6,0.4]
[1722435017775,12.62913176,3346.7,3346.6,0.4]
[1722435018022,15.61714176,3346.7,3346.6,0.4]
[1722435018235,17.80356102,3346.7,3346.6,0.4]
[1722435018396,15.61714176,3346.7,3346.6,0.4]
[1722435018596,12.62913176,3346.7,3346.6,0.4]
[1722435018918,15.61714176,3346.7,3346.6,0.4]
[1722435019118,12.62913176,3346.7,3346.6,0.4]
[1722435021286,15.61714176,3346.7,3346.6,0.4]
[1722435021488,15.21183951,3346.7,3346.6,0.4]
[1722435021885,18.19984951,3346.7,3346.6,0.4]
[1722435022289,15.21183951,3346.7,3346.6,0.4]
[1722435022631,18.19984951,3346.7,3346.6,0.4]
[1722435022852,15.17218944,3346.7,3346.6,0.4]
[1722435023521,13.92781868,3346.7,3346.6,0.4]
[1722435023721,11.34511093,3346.7,3346.6,0.4]
[1722435024339,13.92781868,3346.7,3346.6,0.4]
[1722435024512,11.34511093,3346.7,3346.6,0.4]
[1722435024852,13.93186064,3346.7,3346.6,0.4]
[1722435025562,11.34511093,3346.7,3346.6,0.4]
[1722435025910,15.67669105,3346.7,3346.6,0.4]
[1722435026142,13.0896455,3346.7,3346.6,0.4]
[1722435026956,16.0776555,3346.7,3346.6,0.4]
[1722435027268,19.0656655,3346.7,3346.6,0.4]
[1722435027426,19.6156655,3346.7,3346.6,0.4]
[1722435027634,5.978,3345.6,3345.5,0.6]
[1722435027813,10.61851104,3345.6,3345.5,0.6]
[1722435028168,10.04730385,3345.6,3345.5,0.6]
[1722435028366,13.03630385,3345.6,3345.5,0.6]
[1722435028511,15.62408126,3345.6,3345.5,0.6]
[1722435028712,16.03630385,3345.6,3345.5,0.6]
[1722435029360,18.62281948,3345.6,3345.5,0.6]
[1722435030072,18.93060385,3345.6,3345.5,0.6]
[1722435030379,22.71645081,3345.6,3345.5,0.6]
[1722435030748,19.48060385,3345.6,3345.5,0.6]
[1722435031051,22.58332528,3345.6,3345.5,0.6]
[1722435031355,19.74165161,3345.6,3345.5,0.6]
[1722435031559,22.84437304,3345.6,3345.5,0.6]
[1722435032312,19.74165161,3345.6,3345.5,0.6]
[1722435033271,13.08312976,3345.6,3345.5,0.6]
[1722435033468,11.46362591,3345.6,3345.5,0.6]
[1722435034433,13.64940628,3345.6,3345.5,0.6]
[1722435034690,11.46362591,3345.6,3345.5,0.6]
[1722435035985,14.45262591,3345.6,3345.5,0.6]
[1722435036691,17.99162591,3345.6,3345.5,0.6]
[1722435036871,23.06168834,3345.6,3345.5,0.6]
[1722435037192,20.34799058,3345.6,3345.5,0.6]
[1722435037339,22.92861338,3345.6,3345.5,0.6]
[1722435037536,20.47851227,3345.6,3345.5,0.6]
[1722435038009,23.05913507,3345.6,3345.5,0.6]
[1722435038283,20.66705519,3345.6,3345.5,0.6]
[1722435039237,20.5365335,3345.6,3345.5,0.6]
[1722435039479,2.98944,3345.1,3345.0,0.3]
[1722435039784,5.98944,3345.1,3345.0,0.3]
[1722435040158,8.97888,3345.1,3345.0,0.3]
[1722435040486,10.53757146,3345.1,3345.0,0.3]
[1722435040789,10.53757845,3345.1,3345.0,0.3]
[1722435040957,10.51863306,3345.1,3345.0,0.3]
[1722435041288,9.08789336,3345.1,3345.0,0.3]
[1722435041493,7.5481403,3345.1,3345.0,0.3]
[1722435041708,5.98944,3345.1,3345.0,0.3]
[1722435041856,7.5481403,3345.1,3345.0,0.3]
[1722435042269,8.97888,3345.1,3345.0,0.3]
[1722435042454,10.5375803,3345.1,3345.0,0.3]
[1722435042684,11.59133833,3345.1,3345.0,0.3]
[1722435043500,14.58057523,3345.1,3345.0,0.3]
[1722435043684,15.29497803,3345.1,3345.0,0.3]
[1722435044204,17.16517467,3345.1,3345.0,0.3]
[1722435044507,15.48381058,3345.1,3345.0,0.3]
[1722435044874,12.30553803,3345.1,3345.0,0.3]
[1722435045058,14.17579204,3345.1,3345.0,0.3]
[1722435045264,12.30553803,3345.1,3345.0,0.3]
[1722435046396,8.26234,3345.1,3345.0,0.3]
[1722435046698,5.98944,3345.1,3345.0,0.3]
[1722435046899,7.54774576,3345.1,3345.0,0.3]
[1722435047106,5.98944,3345.1,3345.0,0.3]
[1722435047760,3.0,3345.1,3345.0,0.3]
[1722435047963,4.54765576,3345.2,3345.0,0.3]
[1722435047964,2.98936,3345.2,3345.0,0.3]
[1722435048864,4.54758576,3345.3,3345.0,0.3]
[1722435049068,2.98937,3345.2,3345.0,0.3]
[1722435049405,4.55830576,3345.5,3345.0,0.3]
[1722435049576,1.55830576,3345.5,3345.0,0.3]
[1722435049908,10.39894,3345.7,3345.0,0.628967]
[1722435050060,7.41,3345.7,3345.0,0.3]
[1722435050263,7.41,3345.7,3345.1,0.14208214]
[1722435050264,2.98916,3345.5,3345.1,0.14208214]
[1722435050462,2.98932,3345.3,3345.1,0.14208214]
[1722435050688,2.98925,3345.4,3345.0,0.3]
[1722435050886,2.98927,3345.3,3345.0,0.3]
[1722435051063,2.98938,3345.2,3345.1,0.14203633]
[1722435051277,5.97859,3345.3,3345.0,0.3]
[1722435051496,5.97859,3345.3,3345.1,0.14203633]
[1722435051808,2.98926,3345.3,3345.1,0.14203633]
[1722435052011,1.55833541,3345.5,3345.1,0.34203633]
[1722435052463,1.55833541,3345.6,3345.1,0.34203633]
[1722435052832,2.98868,3346.0,3345.1,3.33142633]
[1722435052963,0.4521957,3346.1,3345.1,3.33142633]
[1722435052964,1.55918267,3346.1,3345.3,2.98924]
[1722435053176,1.55918267,3346.1,3345.2,0.66209063]
[1722435053177,11.95768267,3346.2,3345.4,2.4359]
[1722435053500,2.98856,3346.1,3345.4,2.5779113]
[1722435053895,1.55918267,3346.0,3345.4,2.5779113]
[1722435054212,1.55918267,3345.9,3345.4,0.1420113]
[1722435054507,4.54813267,3345.7,3345.1,0.2]
[1722435054718,4.54820267,3345.6,3345.1,0.2]
[1722435054879,2.98918,3345.4,3345.2,0.14159177]
[1722435055214,1.55918267,3345.5,3345.2,0.14159177]
[1722435055909,2.98896,3345.7,3345.2,0.14159177]
[1722435056107,1.56131495,3345.5,3345.2,0.14159177]
[1722435056634,7.53983495,3345.3,3345.2,0.14159177]
[1722435056920,2.98926,3345.3,3345.1,0.4]
[1722435057268,4.86283794,3345.3,3345.2,0.13242838]
[1722435057464,5.0518524,3345.3,3345.1,0.4]
[1722435057685,4.86283794,3345.3,3345.2,0.13242838]
[1722435057898,4.86283794,3345.3,3345.1,0.4]
[1722435057899,8.04119429,3345.3,3345.1,0.4]
[1722435058214,5.05197505,3345.2,3345.1,0.4]
[1722435058568,3.17839711,3345.2,3345.1,0.4]
[1722435058770,2.06507613,3345.2,3345.1,0.4]
[1722435058974,2.98918,3345.4,3345.1,0.4]
[1722435058975,1.87590041,3345.4,3345.1,0.4]
[1722435059176,3.18865972,3345.3,3345.1,0.4]
[1722435059416,4.87652521,3345.3,3345.1,0.4]
[1722435059715,1.87652521,3345.2,3345.1,0.4]
[1722435059886,9.17022267,3345.3,3345.1,0.4]
[1722435060082,2.06517698,3345.2,3345.1,0.35]
[1722435060497,5.03452698,3345.2,3345.1,0.35]
[1722435060684,3.15800177,3345.2,3345.1,0.35]
[1722435060885,4.42209663,3345.2,3345.1,0.35]
[1722435061267,1.26409486,3345.2,3345.1,0.35]
[1722435061467,1.87713098,3345.2,3345.1,0.35]
[1722435061769,1.87713098,3345.3,3345.1,0.35]
[1722435062001,1.87713098,3345.2,3345.1,0.35]
[1722435062400,5.98918,3345.4,3345.1,0.35]
[1722435062401,3.0,3345.4,3345.1,0.35]
[1722435062602,2.98898,3345.7,3345.1,0.35]
[1722435062603,1.87744074,3345.2,3345.1,0.35]
[1722435062773,3.0,3345.4,3345.1,0.35]
[1722435062974,1.87751338,3345.3,3345.1,0.35]
[1722435063201,1.87751338,3345.2,3345.1,0.35]
[1722435063406,5.17965227,3345.4,3345.1,0.35]
[1722435063921,2.19043227,3345.3,3345.1,0.35]
[1722435064125,2.98935,3345.2,3345.1,0.35]
[1722435064332,5.17972227,3345.3,3345.1,0.35]
[1722435064536,2.19043227,3345.3,3345.1,0.35]
[1722435064686,2.19043227,3345.4,3345.1,0.35]
[1722435065125,2.19043227,3345.4,3345.1,0.713962]
[1722435065126,1.87824903,3345.4,3345.1,0.713962]
[1722435065343,1.56508449,3345.4,3345.3,2.98922]
[1722435065607,1.56508449,3345.5,3345.3,0.13253999]
[1722435065817,1.56508449,3345.5,3345.1,0.713962]
[1722435065818,1.56508571,3345.5,3345.2,2.98934]
[1722435066010,1.56508571,3345.4,3345.2,2.98934]
[1722435066234,1.87810286,3345.6,3345.3,2.98926]
[1722435066416,1.56526159,3345.4,3345.3,2.98926]
[1722435066614,1.87810286,3345.6,3345.3,2.98926]
[1722435066837,12.9866905,3346.3,3345.3,2.98926]
[1722435066838,1.87810286,3345.7,3345.3,2.98926]
[1722435067147,1.87810286,3345.8,3345.4,2.98917]
[1722435067355,1.87810286,3345.7,3345.4,3.6584182]
[1722435067548,1.87810286,3345.6,3345.4,0.6692482]
[1722435067746,1.87810286,3345.6,3345.2,2.98935]
[1722435067967,1.87810286,3345.5,3345.1,0.35]
[1722435068159,1.87810286,3345.4,3345.1,0.35]
[1722435068616,1.87810286,3345.3,3345.1,0.35]
[1722435069126,2.989,3345.6,3345.1,0.35]
[1722435069313,1.87942164,3345.2,3345.1,0.35]
[1722435069516,1.87942164,3345.3,3345.1,0.35]
[1722435070217,1.87942164,3345.2,3345.1,0.35]
[1722435071244,2.19265859,3345.5,3345.1,0.35]
[1722435071421,2.19265859,3345.4,3345.1,0.35]
[1722435072336,6.10272143,3346.0,3345.2,2.98934]
[1722435072656,1.88093634,3345.3,3345.2,2.9893]
[1722435073056,1.88093634,3345.3,3345.2,3.11733476]
[1722435073228,2.1944837,3345.6,3345.2,3.11733476]
[1722435073430,2.1944837,3345.5,3345.3,0.67567648]
[1722435073771,2.1944837,3345.5,3345.3,0.80370835]
[1722435073936,2.1944837,3345.6,3345.3,3.79295835]
[1722435074343,2.1944837,3345.6,3345.3,0.80370835]
[1722435074555,2.1944837,3345.5,3345.3,0.80370835]
[1722435075268,2.1944837,3345.5,3345.3,3.79296835]
[1722435075478,0.18285712,3345.4,3345.3,0.80370835]
[1722435075627,0.18285712,3345.4,3345.3,0.12803187]
[1722435075963,2.37802786,3345.4,3345.1,0.35]
[1722435076291,5.18452074,3345.2,3345.1,0.35]
[1722435076479,3.17220712,3345.2,3345.1,0.35]
[1722435076666,6.64070482,3345.2,3345.1,0.35]
[1722435076872,9.63005482,3345.2,3345.1,0.35]
[1722435077192,7.03700938,3345.2,3345.1,0.35]
[1722435077541,9.44850938,3345.2,3345.1,0.35]
[1722435078077,12.43785938,3345.2,3345.1,0.35]
[1722435078246,15.56837809,3345.2,3345.1,0.35]
[1722435078438,12.57902809,3345.2,3345.1,0.35]
[1722435078637,12.57162662,3345.2,3345.1,0.35]
[1722435078884,4.05830938,3345.2,3345.1,0.35]
[1722435079087,7.04765938,3345.2,3345.1,0.35]
[1722435081644,10.03700938,3345.2,3345.1,0.35]
[1722435081852,15.46567662,3345.2,3345.1,0.35]
[1722435082266,12.48372231,3345.2,3345.1,0.35]
[1722435082674,15.47307231,3345.2,3345.1,0.35]
[1722435082877,12.48372231,3345.2,3345.1,0.35]
[1722435083098,16.02307231,3345.2,3345.1,0.35]
[1722435084788,19.01242231,3345.2,3345.1,0.35]
[1722435085087,16.02307231,3345.2,3345.1,0.35]
[1722435085462,15.89255938,3345.2,3345.1,0.35]
[1722435085780,16.02308548,3345.2,3345.1,0.35]
[1722435086146,8.96832,3345.1,3345.0,0.3]
[1722435086489,14.73297377,3345.1,3345.0,0.3]
[1722435088655,14.73297945,3345.1,3345.0,0.3]
[1722435088969,20.07491945,3345.1,3345.0,0.3]
[1722435089559,2.3547,3344.0,3343.0,2.2668]
[1722435089769,2.3547,3344.0,3342.6,5.99164]
[1722435089770,1.56758102,3343.1,3342.6,2.3553]
[1722435089998,1.56758102,3342.9,3342.6,2.3553]
[1722435090511,1.56758102,3342.7,3342.6,2.3553]
[1722435090998,1.56758102,3342.7,3342.6,5.34698]
[1722435091210,1.56758102,3342.7,3342.6,12.22403564]
[1722435091408,1.56758102,3343.0,3342.9,2.99141]
[1722435091701,1.87946492,3343.9,3343.6,2.9907]
[1722435091913,1.87946492,3343.9,3343.4,5.26148]
[1722435092116,1.56614331,3343.6,3343.4,5.26156]
[1722435092296,1.56614331,3343.6,3343.5,6.806997]
[1722435092496,1.87946492,3343.9,3343.7,2.99066]
[1722435092879,1.87946492,3343.9,3343.5,3.816127]
[1722435092880,1.56590217,3343.8,3343.6,2.99074]
[1722435093064,2.1929076,3344.4,3343.6,2.99077]
[1722435093065,1.56593873,3343.7,3343.6,2.99077]
[1722435093172,2.99003,3344.5,3343.7,2.99068]
[1722435093173,1.87946492,3343.9,3343.7,2.99068]
[1722435093362,5.55436454,3344.9,3343.7,2.99068]
[1722435093363,1.87946492,3344.0,3343.8,2.99059]
[1722435093713,2.1929076,3344.3,3343.9,2.99046]
[1722435093714,1.87946492,3344.3,3343.9,2.99046]
[1722435094012,1.87946492,3344.3,3343.8,2.99059]
[1722435094013,1.87946492,3344.2,3343.8,2.99058]
[1722435094303,1.87946492,3344.2,3343.7,0.9077307]
[1722435094304,1.87946492,3344.1,3343.7,3.8984007]
[1722435094531,1.56570144,3343.8,3343.7,3.8984007]
[1722435094700,1.87887439,3344.2,3343.7,3.8984007]
[1722435094859,2.98992,3344.6,3343.7,3.8984007]
[1722435094860,3.13132069,3343.8,3343.7,3.8984007]
[1722435095090,1.56565543,3343.8,3343.7,3.8984007]
[1722435096004,1.56565543,3343.8,3343.5,2.99086]
[1722435096302,1.56570084,3343.6,3343.5,2.99086]
[1722435096515,1.56570084,3343.7,3343.5,2.99086]
[1722435096858,1.56570084,3343.7,3343.6,2.99078]
[1722435097868,3.13118287,3343.8,3343.7,2.99069]
[1722435098130,1.56565543,3343.8,3343.7,6.51349035]
[1722435098672,1.56565543,3343.8,3343.7,12.13618035]
[1722435099402,1.56565543,3343.8,3343.7,9.14549035]
[1722435099802,1.56565543,3343.8,3343.7,6.51349035]
[1722435100380,1.56565543,3343.8,3343.7,3.52280035]
[1722435100579,1.56565543,3343.8,3343.7,5.98138]
[1722435101006,2.9893,3345.3,3344.2,2.99023]
[1722435101304,7.41,3345.5,3344.4,2.99007]
[1722435101305,1.87985138,3344.5,3344.4,2.99007]
[1722435101607,1.87985138,3344.6,3344.5,2.98998]
[1722435101768,1.87985138,3344.7,3344.5,2.98998]
[1722435101994,1.87985138,3344.7,3344.6,2.98989]
[1722435102284,2.32367367,3345.0,3344.6,2.98989]
[1722435102603,0.18238146,3344.9,3344.5,2.98997]
[1722435102917,2.32367367,3345.0,3344.5,2.98997]
[1722435102918,1.88023841,3344.7,3344.5,2.98997]
[1722435103078,1.88023841,3344.6,3344.5,2.98997]
[1722435103430,1.88023841,3344.6,3344.3,2.99015]
[1722435103583,1.88023841,3344.6,3344.3,3.837513]
[1722435103912,0.13051372,3345.0,3344.3,0.847363]
[1722435103913,1.88023841,3344.5,3344.3,0.847363]
[1722435104120,1.88023841,3344.5,3344.0,2.99036]
[1722435104328,1.56692086,3344.2,3344.1,2.99033]
[1722435104546,1.56692086,3344.2,3343.7,8.02927]
[1722435104704,1.56692086,3344.1,3343.7,5.39725]
[1722435104905,2.98973,3344.8,3344.1,2.99034]
[1722435104906,1.56692086,3344.2,3344.1,2.99034]
[1722435105106,1.56705478,3344.2,3343.9,2.99045]
[1722435105441,2.3743,3344.9,3344.0,2.99039]
[1722435105442,1.88030503,3344.3,3344.0,2.99039]
[1722435106144,1.88030503,3344.3,3344.2,2.99025]
[1722435106848,1.88030503,3344.3,3344.0,2.99039]
[1722435106999,1.88030503,3344.3,3343.8,0.539725]
[1722435107000,1.88030503,3344.3,3343.9,2.99051]
[1722435107347,1.56733743,3344.0,3343.7,2.99065]
[1722435107548,5.18362921,3344.6,3343.7,2.99065]
[1722435107549,1.56756884,3343.9,3343.7,3.588787]
[1722435108202,1.56756884,3343.9,3343.4,2.9909]
[1722435108398,1.88108261,3344.1,3343.7,2.99067]
[1722435108610,1.88108261,3344.0,3343.5,2.99079]
[1722435108841,1.88108261,3344.0,3343.4,2.99091]
[1722435108842,1.56795261,3343.7,3343.4,2.99096]
[1722435109039,1.56795261,3343.6,3343.4,2.99091]
[1722435109244,1.56795261,3343.5,3343.4,2.99091]
[1722435109414,1.88108261,3343.8,3343.6,2.99075]
[1722435110641,2.98998,3344.5,3343.6,2.99075]
[1722435110941,1.88204636,3343.8,3343.6,2.99074]
[1722435111144,1.88204636,3343.8,3342.9,5.2885]
[1722435111145,1.88204636,3343.9,3343.7,2.99062]
[1722435111653,1.88204636,3343.8,3343.7,2.99062]
[1722435111851,1.88204636,3343.9,3343.7,2.99062]
[1722435112057,1.88204636,3343.9,3343.7,3.11576728]
[1722435112437,1.88204636,3343.8,3343.7,0.12514728]
[1722435112642,1.88204636,3343.8,3343.6,2.99078]
[1722435113022,1.88204636,3343.8,3343.7,0.12514728]
[1722435113239,1.88204636,3343.9,3343.4,2.9909]
[1722435113413,1.88204636,3343.8,3343.6,2.99074]
[1722435113615,1.88204636,3343.8,3343.7,0.12514728]
[1722435113864,2.9899,3344.6,3343.7,0.12514728]
[1722435114042,1.88231253,3343.8,3343.6,2.99078]
[1722435114243,1.88231253,3343.8,3343.4,2.99088]
[1722435114449,1.88231253,3343.8,3341.5,0.93761444]
[1722435114450,1.56865548,3343.5,3343.3,2.99105]
[1722435114610,2.19603129,3344.1,3342.9,7.98005]
[1722435114611,1.56865548,3343.4,3342.9,7.98005]
[1722435114811,1.56865548,3343.2,3343.0,2.9913]
[1722435115056,1.88231253,3343.3,3342.6,2.99161]
[1722435115223,1.56890453,3342.9,3342.8,2.99145]
[1722435115422,1.56890453,3342.9,3342.7,4.826503]
[1722435115761,1.56890453,3342.9,3342.8,2.9915]
[1722435116134,1.56890453,3342.9,3342.8,5.9915]
[1722435117059,2.99057,3343.9,3342.8,5.9915]
[1722435117259,1.56854784,3342.9,3342.8,8.983]
[1722435117921,2.19596698,3343.6,3342.9,5.98282]
[1722435117922,1.56854784,3343.0,3342.9,5.98282]
[1722435118121,1.88225741,3343.3,3342.9,0.125249]
[1722435118370,1.56832939,3343.1,3342.9,3.116659]
[1722435118515,1.56832939,3343.1,3343.0,3.80087666]
[1722435118719,1.56832939,3343.1,3343.0,6.91754754]
[1722435118955,1.88189309,3343.4,3343.1,2.99116]
[1722435119154,1.88189309,3343.4,3343.2,2.99111]
[1722435119357,1.88189309,3343.4,3343.2,3.11645509]
[1722435119568,1.88189309,3343.3,3343.2,3.11645509]
[1722435119871,5.9808,3344.1,3343.2,3.11645509]
[1722435119872,1.88189309,3343.5,3343.3,2.99101]
[1722435120221,1.88189309,3343.5,3343.4,0.12559135]
[1722435120444,12.6944,3344.2,3343.3,2.991]
[1722435120659,1.88180298,3343.5,3343.4,3.11655135]
[1722435120861,1.88180298,3343.6,3343.4,0.12559135]